[Event "*** Titled Tuesday 3|2 Blitz"]
[Site "Chess.com"]
[Date "2016.01.05"]
[Round "8"]
[White "Hikaru"]
[Black "maciek_92"]
[Result "1-0"]
[WhiteElo "2898"]
[BlackElo "2398"]
[TimeControl "180+2"]
[EndTime "12:39:50 PST"]
[Termination "Hikaru won by resignation"]

1. d4 {[%clk 0:03:01.9]} 1... Nf6 {[%clk 0:03:00.8]} 2. Bf4 {[%clk 0:03:02.1]}
2... d5 {[%clk 0:02:59]} 3. e3 {[%clk 0:03:03.3]} 3... e6 {[%clk 0:02:55.2]} 4.
Bd3 {[%clk 0:03:03.7]} 4... c5 {[%clk 0:02:56.3]} 5. c3 {[%clk 0:03:03.1]} 5...
Nc6 {[%clk 0:02:57.7]} 6. Nf3 {[%clk 0:03:03.9]} 6... Bd6 {[%clk 0:02:58.2]} 7.
Bg3 {[%clk 0:03:05]} 7... O-O {[%clk 0:02:57.1]} 8. Nbd2 {[%clk 0:03:06.1]} 8...
b6 {[%clk 0:02:53]} 9. e4 {[%clk 0:03:07.2]} 9... dxe4 {[%clk 0:02:47.5]} 10.
Nxe4 {[%clk 0:03:03.1]} 10... Nxe4 {[%clk 0:02:40.3]} 11. Bxe4 {[%clk
0:03:04.1]} 11... Bb7 {[%clk 0:02:41.3]} 12. dxc5 {[%clk 0:02:47.2]} 12... Bxc5
{[%clk 0:02:39.3]} 13. Qe2 {[%clk 0:02:48.1]} 13... a5 {[%clk 0:02:12.6]} 14.
Rd1 {[%clk 0:02:28.7]} 14... Qe7 {[%clk 0:02:13.2]} 15. Bd3 {[%clk 0:02:21.7]}
15... h6 {[%clk 0:01:43]} 16. O-O {[%clk 0:02:21]} 16... Rad8 {[%clk 0:01:33.5]}
17. Rfe1 {[%clk 0:01:49.6]} 17... Rfe8 {[%clk 0:01:11.7]} 18. a3 {[%clk
0:01:37.2]} 18... Bd6 {[%clk 0:01:09.8]} 19. Qe3 {[%clk 0:01:32.4]} 19... Bxg3
{[%clk 0:01:08.3]} 20. hxg3 {[%clk 0:01:34.3]} 20... Qc5 {[%clk 0:01:07.8]} 21.
Qxc5 {[%clk 0:01:31.9]} 21... bxc5 {[%clk 0:01:08.6]} 22. Bb5 {[%clk 0:01:33.5]}
22... Rxd1 {[%clk 0:01:06.5]} 23. Rxd1 {[%clk 0:01:34.4]} 23... Rd8 {[%clk
0:01:08.1]} 24. Rxd8+ {[%clk 0:01:24.4]} 24... Nxd8 {[%clk 0:01:07.8]} 25. Nd2
{[%clk 0:01:24.8]} 25... Bd5 {[%clk 0:01:03.9]} 26. c4 {[%clk 0:01:21.6]} 26...
Bc6 {[%clk 0:00:59.4]} 27. Ba6 {[%clk 0:00:55.2]} 27... a4 {[%clk 0:00:57.2]}
28. Nb1 {[%clk 0:00:56.1]} 28... Nb7 {[%clk 0:00:50.6]} 29. Nc3 {[%clk
0:00:54.6]} 29... Nd6 {[%clk 0:00:46.2]} 30. Bb5 {[%clk 0:00:55.6]} 30... Bxb5
{[%clk 0:00:43.9]} 31. cxb5 {[%clk 0:00:57.5]} 31... c4 {[%clk 0:00:39.6]} 32.
b6 {[%clk 0:00:57]} 32... Kf8 {[%clk 0:00:38.9]} 33. Nxa4 {[%clk 0:00:58.2]}
33... Nb7 {[%clk 0:00:35.6]} 34. Kf1 {[%clk 0:00:48.4]} 34... Ke7 {[%clk
0:00:36.8]} 35. Ke2 {[%clk 0:00:49.9]} 35... Kd6 {[%clk 0:00:38.4]} 36. Ke3
{[%clk 0:00:51.6]} 36... Kd5 {[%clk 0:00:31.6]} 37. g4 {[%clk 0:00:44.9]} 37...
Na5 {[%clk 0:00:20.8]} 38. Nc3+ {[%clk 0:00:38.2]} 38... Kc5 {[%clk 0:00:20.6]}
39. Ne4+ {[%clk 0:00:37.1]} 39... Kd5 {[%clk 0:00:18.5]} 40. Nc3+ {[%clk
0:00:34.4]} 40... Kc5 {[%clk 0:00:19.6]} 41. Ke4 {[%clk 0:00:36.1]} 41... Kxb6
{[%clk 0:00:19.7]} 42. Kd4 {[%clk 0:00:37.8]} 42... Kc6 {[%clk 0:00:20.7]} 43.
Ne4 {[%clk 0:00:39]} 43... f6 {[%clk 0:00:19.1]} 44. Ng3 {[%clk 0:00:39.9]}
44... Kd6 {[%clk 0:00:19.1]} 45. Nh5 {[%clk 0:00:40.6]} 45... Nc6+ {[%clk
0:00:13.1]} 46. Kxc4 {[%clk 0:00:39.7]} 46... Ne5+ {[%clk 0:00:14.3]} 47. Kd4
{[%clk 0:00:41.4]} 47... Nxg4 {[%clk 0:00:15.8]} 48. f3 {[%clk 0:00:43.1]} 48...
e5+ {[%clk 0:00:14.7]} 49. Kd3 {[%clk 0:00:40.3]} 49... Nf2+ {[%clk 0:00:10.5]}
50. Ke2 {[%clk 0:00:39.3]} 50... Nh1 {[%clk 0:00:11.3]} 51. Nxg7 {[%clk
0:00:40.2]} 51... Kd5 {[%clk 0:00:10.2]} 52. Nf5 {[%clk 0:00:38]} 52... h5
{[%clk 0:00:09.2]} 53. a4 {[%clk 0:00:39.5]} 53... Kc4 {[%clk 0:00:08.8]} 54. a5
{[%clk 0:00:40.4]} 54... Kb5 {[%clk 0:00:09.9]} 55. b4 {[%clk 0:00:42.1]} 55...
Ka6 {[%clk 0:00:09.2]} 1-0

[Event "*** Titled Tuesday 3|2 Blitz"]
[Site "Chess.com"]
[Date "2016.01.05"]
[Round "8"]
[White "wilju"]
[Black "cool64chess"]
[Result "0-1"]
[WhiteElo "1836"]
[BlackElo "2219"]
[TimeControl "180+2"]
[EndTime "12:39:56 PST"]
[Termination "cool64chess won by resignation"]

1. e4 {[%clk 0:03:01.6]} 1... e6 {[%clk 0:03:00.7]} 2. d4 {[%clk 0:03:01.6]}
2... d5 {[%clk 0:02:57.8]} 3. Nd2 {[%clk 0:03:02.2]} 3... Be7 {[%clk 0:02:57.7]}
4. e5 {[%clk 0:02:59.9]} 4... c5 {[%clk 0:02:57.3]} 5. c3 {[%clk 0:03:00.1]}
5... Nc6 {[%clk 0:02:57.4]} 6. Ne2 {[%clk 0:02:50.8]} 6... Nh6 {[%clk
0:02:57.6]} 7. a3 {[%clk 0:02:47.1]} 7... a5 {[%clk 0:02:54.7]} 8. f4 {[%clk
0:02:43.7]} 8... Nf5 {[%clk 0:02:48.5]} 9. Nf3 {[%clk 0:02:42.6]} 9... O-O
{[%clk 0:02:36.5]} 10. Ng3 {[%clk 0:02:38.9]} 10... Bh4 {[%clk 0:02:30.6]} 11.
Kf2 {[%clk 0:02:03.6]} 11... cxd4 {[%clk 0:02:11]} 12. cxd4 {[%clk 0:02:03.1]}
12... f6 {[%clk 0:02:08.6]} 13. Bd3 {[%clk 0:01:57.5]} 13... fxe5 {[%clk
0:02:07.3]} 14. Bxf5 {[%clk 0:01:50.6]} 14... exf4 {[%clk 0:01:57.3]} 15. Bc2
{[%clk 0:01:44.3]} 15... g6 {[%clk 0:01:27.9]} 16. Qd3 {[%clk 0:01:35.1]} 16...
e5 {[%clk 0:01:03.5]} 17. dxe5 {[%clk 0:01:30.4]} 17... Bf5 {[%clk 0:00:57.8]}
18. Qd2 {[%clk 0:01:24.8]} 18... Bxc2 {[%clk 0:00:54.6]} 19. Qxc2 {[%clk
0:01:24.6]} 19... Qb6+ {[%clk 0:00:50.6]} 20. Kf1 {[%clk 0:01:12.6]} 20... fxg3
{[%clk 0:00:51.4]} 21. hxg3 {[%clk 0:01:12.1]} 21... Bxg3 {[%clk 0:00:51.2]} 22.
Rh3 {[%clk 0:01:09.5]} 22... Bxe5 {[%clk 0:00:48.7]} 23. Bh6 {[%clk 0:00:59.7]}
23... Rf7 {[%clk 0:00:37.3]} 24. Qd2 {[%clk 0:00:53.2]} 24... Qxb2 {[%clk
0:00:34.1]} 25. Qxb2 {[%clk 0:00:49.4]} 25... Bxb2 {[%clk 0:00:34.7]} 26. Ra2
{[%clk 0:00:38.8]} 26... Bg7 {[%clk 0:00:31.7]} 27. Bxg7 {[%clk 0:00:36.6]}
27... Kxg7 {[%clk 0:00:31.1]} 28. Rd2 {[%clk 0:00:35.3]} 28... Rd8 {[%clk
0:00:23]} 29. Ke2 {[%clk 0:00:33.6]} 29... h6 {[%clk 0:00:23.8]} 30. Nd4 {[%clk
0:00:27.6]} 30... Re7+ {[%clk 0:00:21.4]} 31. Kd1 {[%clk 0:00:27.1]} 31... Ne5
{[%clk 0:00:22.6]} 32. Re3 {[%clk 0:00:23.3]} 32... Rde8 {[%clk 0:00:18.9]} 33.
Rde2 {[%clk 0:00:21.3]} 33... Nc6 {[%clk 0:00:16.8]} 34. Ne6+ {[%clk 0:00:11.4]}
34... Kg8 {[%clk 0:00:16.9]} 35. g4 {[%clk 0:00:07.7]} 35... Nd8 {[%clk
0:00:13.5]} 36. Nxd8 {[%clk 0:00:03.1]} 36... Rxe3 {[%clk 0:00:14.2]} 37. Rxe3
{[%clk 0:00:03.8]} 37... Rxe3 {[%clk 0:00:15.2]} 38. Nxb7 {[%clk 0:00:05.6]}
38... Rxa3 {[%clk 0:00:16.4]} 39. Nc5 {[%clk 0:00:05.1]} 39... Rg3 {[%clk
0:00:16.8]} 40. Ne6 {[%clk 0:00:05]} 40... Rxg4 {[%clk 0:00:17.4]} 0-1

[Event "*** Titled Tuesday 3|2 Blitz"]
[Site "Chess.com"]
[Date "2016.01.05"]
[Round "8"]
[White "Matibar"]
[Black "swayamsm"]
[Result "0-1"]
[WhiteElo "2454"]
[BlackElo "2575"]
[TimeControl "180+2"]
[EndTime "12:40:00 PST"]
[Termination "swayamsm won by checkmate"]

1. e4 {[%clk 0:03:01.9]} 1... e6 {[%clk 0:03:01.9]} 2. d4 {[%clk 0:02:58.1]}
2... d5 {[%clk 0:03:02.9]} 3. Nc3 {[%clk 0:02:58.8]} 3... Nf6 {[%clk 0:02:59.5]}
4. Bg5 {[%clk 0:02:58.8]} 4... Bb4 {[%clk 0:02:57.9]} 5. e5 {[%clk 0:02:56.4]}
5... h6 {[%clk 0:02:57.5]} 6. Bh4 {[%clk 0:02:57.4]} 6... g5 {[%clk 0:02:57.1]}
7. Bg3 {[%clk 0:02:58.4]} 7... Ne4 {[%clk 0:02:57.1]} 8. Ne2 {[%clk 0:02:59.1]}
8... c5 {[%clk 0:02:54.4]} 9. a3 {[%clk 0:03:00.1]} 9... Bxc3+ {[%clk
0:02:42.9]} 10. Nxc3 {[%clk 0:03:00.5]} 10... Nxc3 {[%clk 0:02:40.1]} 11. bxc3
{[%clk 0:02:59.7]} 11... Qa5 {[%clk 0:02:36.5]} 12. Qd2 {[%clk 0:03:00.3]} 12...
Nc6 {[%clk 0:02:37.8]} 13. dxc5 {[%clk 0:03:01]} 13... Bd7 {[%clk 0:02:36.4]}
14. h4 {[%clk 0:03:02.3]} 14... O-O-O {[%clk 0:02:21.9]} 15. f3 {[%clk
0:03:02.3]} 15... Qxc5 {[%clk 0:02:18.6]} 16. a4 {[%clk 0:02:50.5]} 16... d4
{[%clk 0:02:15.9]} 17. hxg5 {[%clk 0:02:47.6]} 17... dxc3 {[%clk 0:02:11.5]} 18.
Qf2 {[%clk 0:02:48.1]} 18... Qxf2+ {[%clk 0:02:08.4]} 19. Kxf2 {[%clk
0:02:46.4]} 19... hxg5 {[%clk 0:02:10.3]} 20. Rxh8 {[%clk 0:02:47.5]} 20... Rxh8
{[%clk 0:02:11.2]} 21. Ra3 {[%clk 0:02:49.1]} 21... Kb8 {[%clk 0:02:03.1]} 22.
Rxc3 {[%clk 0:02:45.3]} 22... Rc8 {[%clk 0:02:04.6]} 23. Ke3 {[%clk 0:02:38.2]}
23... a6 {[%clk 0:02:01.2]} 24. Rc4 {[%clk 0:01:55]} 24... Ne7 {[%clk
0:01:51.8]} 25. Rxc8+ {[%clk 0:01:49.8]} 25... Kxc8 {[%clk 0:01:50.8]} 26. a5
{[%clk 0:01:50.2]} 26... Nf5+ {[%clk 0:01:43.3]} 27. Kf2 {[%clk 0:01:51.3]}
27... Kc7 {[%clk 0:01:38.8]} 28. Bd3 {[%clk 0:01:50.2]} 28... Nxg3 {[%clk
0:01:26.9]} 29. Kxg3 {[%clk 0:01:50.7]} 29... b6 {[%clk 0:01:28.4]} 30. Bxa6
{[%clk 0:01:30.7]} 30... bxa5 {[%clk 0:01:28.8]} 31. Kg4 {[%clk 0:01:32.1]}
31... a4 {[%clk 0:01:23.3]} 32. Kxg5 {[%clk 0:01:30.3]} 32... a3 {[%clk
0:01:24.5]} 33. Bc4 {[%clk 0:01:30.8]} 33... Ba4 {[%clk 0:01:25.5]} 34. c3
{[%clk 0:01:29.9]} 34... Kb6 {[%clk 0:01:22.6]} 35. Ba2 {[%clk 0:01:28.7]} 35...
Kc5 {[%clk 0:01:23.8]} 36. Kf6 {[%clk 0:01:29.3]} 36... Bb5 {[%clk 0:00:50.4]}
37. Kxf7 {[%clk 0:01:24]} 37... Bc4 {[%clk 0:00:51.1]} 38. Bb1 {[%clk
0:01:24.6]} 38... Bd3 {[%clk 0:00:50.7]} 39. Ba2 {[%clk 0:01:25.5]} 39... Bc4
{[%clk 0:00:50.1]} 40. Bb1 {[%clk 0:01:26.5]} 40... Kd5 {[%clk 0:00:39.3]} 41.
f4 {[%clk 0:01:07.7]} 41... Bd3 {[%clk 0:00:36.3]} 42. Ba2+ {[%clk 0:01:06.4]}
42... Bc4 {[%clk 0:00:37.6]} 43. Bb1 {[%clk 0:01:07.4]} 43... Bd3 {[%clk
0:00:38.3]} 44. Ba2+ {[%clk 0:01:08.4]} 44... Bc4 {[%clk 0:00:39.8]} 45. Bb1
{[%clk 0:00:31]} 45... Kc5 {[%clk 0:00:32.6]} 46. g4 {[%clk 0:00:28.4]} 46...
Bd3 {[%clk 0:00:33.3]} 47. Ba2 {[%clk 0:00:29]} 47... Bc4 {[%clk 0:00:34.6]} 48.
g5 {[%clk 0:00:19.2]} 48... Bxa2 {[%clk 0:00:27.4]} 49. g6 {[%clk 0:00:20.5]}
49... Bb1 {[%clk 0:00:28.6]} 50. g7 {[%clk 0:00:21.7]} 50... Bh7 {[%clk
0:00:30]} 51. f5 {[%clk 0:00:22.8]} 51... a2 {[%clk 0:00:24.4]} 52. fxe6 {[%clk
0:00:20.8]} 52... a1=Q {[%clk 0:00:25.3]} 53. e7 {[%clk 0:00:22.2]} 53... Qf1+
{[%clk 0:00:25.5]} 54. Ke6 {[%clk 0:00:22.9]} 54... Qf5# {[%clk 0:00:25.8]} 0-1

[Event "*** Titled Tuesday 3|2 Blitz"]
[Site "Chess.com"]
[Date "2016.01.05"]
[Round "8"]
[White "yurisolo"]
[Black "Lupul_Cenusiu"]
[Result "0-1"]
[WhiteElo "2450"]
[BlackElo "2388"]
[TimeControl "180+2"]
[EndTime "12:40:18 PST"]
[Termination "Lupul_Cenusiu won on time"]

1. e4 {[%clk 0:03:01.9]} 1... c5 {[%clk 0:03:00.1]} 2. d4 {[%clk 0:03:02.7]}
2... cxd4 {[%clk 0:03:00.7]} 3. Nf3 {[%clk 0:03:04.4]} 3... e6 {[%clk
0:03:01.2]} 4. Nxd4 {[%clk 0:03:03.6]} 4... a6 {[%clk 0:03:02.4]} 5. Bd3 {[%clk
0:03:04.1]} 5... Bc5 {[%clk 0:03:02.6]} 6. Nb3 {[%clk 0:03:05.2]} 6... Ba7
{[%clk 0:03:03.3]} 7. Qg4 {[%clk 0:03:05.3]} 7... Nf6 {[%clk 0:03:01.1]} 8. Qg3
{[%clk 0:03:06]} 8... d6 {[%clk 0:02:41.1]} 9. Nc3 {[%clk 0:03:06.6]} 9... O-O
{[%clk 0:02:41.4]} 10. Bg5 {[%clk 0:03:06.7]} 10... Nc6 {[%clk 0:02:36.8]} 11.
O-O-O {[%clk 0:03:07.5]} 11... Kh8 {[%clk 0:02:15]} 12. Be2 {[%clk 0:03:06.8]}
12... Bb8 {[%clk 0:02:13]} 13. f4 {[%clk 0:03:06]} 13... Qe8 {[%clk 0:02:11.6]}
14. Qh4 {[%clk 0:02:47.4]} 14... Ng8 {[%clk 0:02:09.8]} 15. Qf2 {[%clk
0:02:18.3]} 15... f6 {[%clk 0:02:03.2]} 16. Bh4 {[%clk 0:02:19.2]} 16... b5
{[%clk 0:02:02.3]} 17. Bf3 {[%clk 0:02:17.4]} 17... Ra7 {[%clk 0:01:50.7]} 18.
g4 {[%clk 0:02:09.8]} 18... Bd7 {[%clk 0:01:40.2]} 19. Bg3 {[%clk 0:02:09.7]}
19... b4 {[%clk 0:01:38.5]} 20. Ne2 {[%clk 0:02:10.6]} 20... e5 {[%clk
0:01:39.6]} 21. f5 {[%clk 0:02:07.4]} 21... a5 {[%clk 0:01:39.6]} 22. Nd2 {[%clk
0:02:02.9]} 22... a4 {[%clk 0:01:37.1]} 23. Nc4 {[%clk 0:02:03.8]} 23... Qf7
{[%clk 0:01:26.5]} 24. b3 {[%clk 0:01:52]} 24... axb3 {[%clk 0:01:26.7]} 25.
axb3 {[%clk 0:01:53.9]} 25... Na5 {[%clk 0:01:22.3]} 26. Nxa5 {[%clk 0:01:33.9]}
26... Rxa5 {[%clk 0:01:22.2]} 27. Kb2 {[%clk 0:01:32.5]} 27... Ba7 {[%clk
0:01:20.9]} 28. Qg2 {[%clk 0:01:33]} 28... Bc5 {[%clk 0:01:20.6]} 29. Ra1 {[%clk
0:01:33.5]} 29... Rfa8 {[%clk 0:01:20.8]} 30. Bf2 {[%clk 0:01:34.3]} 30... Qe8
{[%clk 0:01:14]} 31. h4 {[%clk 0:01:26.6]} 31... Qc8 {[%clk 0:01:12.4]} 32. Rxa5
{[%clk 0:01:15.4]} 32... Rxa5 {[%clk 0:01:12.6]} 33. g5 {[%clk 0:01:08.3]} 33...
Qa6 {[%clk 0:01:01.4]} 34. Bxc5 {[%clk 0:01:04.1]} 34... dxc5 {[%clk 0:01:01.9]}
35. Rg1 {[%clk 0:00:55.9]} 35... Ra2+ {[%clk 0:01:01.9]} 36. Kc1 {[%clk
0:00:56.9]} 36... Ra1+ {[%clk 0:00:54.1]} 37. Kd2 {[%clk 0:00:57.9]} 37... Qd6+
{[%clk 0:00:51.4]} 38. Ke3 {[%clk 0:00:56.6]} 38... Rxg1 {[%clk 0:00:48.4]} 39.
Qxg1 {[%clk 0:00:54.8]} 39... Bb5 {[%clk 0:00:49.6]} 40. Qa1 {[%clk 0:00:50.7]}
40... fxg5 {[%clk 0:00:48]} 41. hxg5 {[%clk 0:00:50.9]} 41... Qe7 {[%clk
0:00:49.3]} 42. Qg1 {[%clk 0:00:45.8]} 42... h6 {[%clk 0:00:46.6]} 43. gxh6
{[%clk 0:00:36]} 43... Nxh6 {[%clk 0:00:47]} 44. Qg6 {[%clk 0:00:21]} 44... Qh4
{[%clk 0:00:39.4]} 45. Qb6 {[%clk 0:00:10.7]} 45... Bxe2 {[%clk 0:00:39]} 46.
Kxe2 {[%clk 0:00:09.2]} 46... Qh2+ {[%clk 0:00:39]} 47. Kd3 {[%clk 0:00:07.7]}
47... Qf2 {[%clk 0:00:38.3]} 48. Bh5 {[%clk 0:00:06.7]} 48... Qd4+ {[%clk
0:00:36.9]} 49. Ke2 {[%clk 0:00:07.9]} 49... Qxe4+ {[%clk 0:00:37.9]} 50. Kd2
{[%clk 0:00:08]} 50... Qf4+ {[%clk 0:00:32.7]} 51. Kd3 {[%clk 0:00:03.6]} 51...
Qxf5+ {[%clk 0:00:33.1]} 52. Kc4 {[%clk 0:00:05.2]} 52... Qxh5 {[%clk
0:00:34.2]} 53. Qd8+ {[%clk 0:00:02.1]} 53... Kh7 {[%clk 0:00:30.5]} 54. Kxc5
{[%clk 0:00:04]} 54... Qf5 {[%clk 0:00:29]} 55. Kxb4 {[%clk 0:00:03.6]} 55...
Qxc2 {[%clk 0:00:30.1]} 0-1

[Event "*** Titled Tuesday 3|2 Blitz"]
[Site "Chess.com"]
[Date "2016.01.05"]
[Round "8"]
[White "GeorgMeier"]
[Black "BahadirOzen"]
[Result "1-0"]
[WhiteElo "2679"]
[BlackElo "2478"]
[TimeControl "180+2"]
[EndTime "12:40:19 PST"]
[Termination "GeorgMeier won on time"]

1. Nf3 {[%clk 0:03:01.9]} 1... g6 {[%clk 0:02:56.1]} 2. e4 {[%clk 0:03:01]} 2...
Bg7 {[%clk 0:02:57.3]} 3. d4 {[%clk 0:03:02.1]} 3... d6 {[%clk 0:02:58.8]} 4.
Be2 {[%clk 0:03:03.1]} 4... Nf6 {[%clk 0:03:00]} 5. Nc3 {[%clk 0:03:03.8]} 5...
O-O {[%clk 0:03:01.2]} 6. O-O {[%clk 0:03:05.2]} 6... c6 {[%clk 0:03:02.6]} 7.
h3 {[%clk 0:03:00.6]} 7... Nbd7 {[%clk 0:03:02.2]} 8. Bf4 {[%clk 0:03:00.9]}
8... Qa5 {[%clk 0:02:52.6]} 9. a3 {[%clk 0:02:57.6]} 9... e5 {[%clk 0:02:47.1]}
10. dxe5 {[%clk 0:02:59.5]} 10... dxe5 {[%clk 0:02:49]} 11. Be3 {[%clk 0:03:01]}
11... Qc7 {[%clk 0:02:47.5]} 12. Nd2 {[%clk 0:02:42.2]} 12... b5 {[%clk
0:02:45.6]} 13. a4 {[%clk 0:02:38.2]} 13... b4 {[%clk 0:02:39.5]} 14. Ncb1
{[%clk 0:02:39]} 14... c5 {[%clk 0:02:20.9]} 15. c3 {[%clk 0:02:38.5]} 15... Bb7
{[%clk 0:02:20.8]} 16. Qc2 {[%clk 0:02:38.2]} 16... Rac8 {[%clk 0:02:11.2]} 17.
a5 {[%clk 0:02:35]} 17... a6 {[%clk 0:01:49.1]} 18. Rc1 {[%clk 0:02:22.7]} 18...
Qb8 {[%clk 0:01:46.8]} 19. Bf3 {[%clk 0:02:22.8]} 19... Qa8 {[%clk 0:01:38.9]}
20. g3 {[%clk 0:01:25.6]} 20... h5 {[%clk 0:01:33.9]} 21. Bg2 {[%clk 0:01:26.2]}
21... h4 {[%clk 0:01:30.5]} 22. g4 {[%clk 0:01:26.7]} 22... Rfe8 {[%clk
0:01:15.2]} 23. Re1 {[%clk 0:01:26.9]} 23... Nf8 {[%clk 0:00:59.4]} 24. Bg5
{[%clk 0:01:21.8]} 24... Ne6 {[%clk 0:00:59.2]} 25. Bxh4 {[%clk 0:01:22.9]}
25... Nf4 {[%clk 0:01:00.5]} 26. f3 {[%clk 0:01:13.6]} 26... Bc6 {[%clk
0:00:07.2]} 27. Nc4 {[%clk 0:01:10.2]} 27... Rcd8 {[%clk 0:00:04]} 28. Nbd2
{[%clk 0:01:01]} 28... Bb5 {[%clk 0:00:03]} 29. Bf1 {[%clk 0:00:51.1]} 29... Qb7
{[%clk 0:00:03.7]} 30. Kh2 {[%clk 0:00:45.2]} 30... Rd7 {[%clk 0:00:04.6]} 31.
Ne3 {[%clk 0:00:39.4]} 31... Red8 {[%clk 0:00:03.8]} 32. Ndc4 {[%clk 0:00:39]}
32... Qc7 {[%clk 0:00:02.6]} 33. Rad1 {[%clk 0:00:37.9]} 33... Rxd1 {[%clk
0:00:03.8]} 34. Rxd1 {[%clk 0:00:39.8]} 34... Rxd1 {[%clk 0:00:03.2]} 35. Qxd1
{[%clk 0:00:41.7]} 35... bxc3 {[%clk 0:00:04.8]} 36. bxc3 {[%clk 0:00:42.6]}
36... Ne8 {[%clk 0:00:02.5]} 37. Qd8 {[%clk 0:00:35.5]} 37... Qxd8 {[%clk
0:00:02.9]} 38. Bxd8 {[%clk 0:00:37.4]} 38... f6 {[%clk 0:00:04.3]} 39. h4
{[%clk 0:00:31.4]} 39... Kf7 {[%clk 0:00:05]} 40. Kg3 {[%clk 0:00:28.3]} 40...
Ne6 {[%clk 0:00:06.3]} 41. Bb6 {[%clk 0:00:27.8]} 41... Bh6 {[%clk 0:00:07.7]}
42. Nd5 {[%clk 0:00:28.9]} 42... Bc1 {[%clk 0:00:04.7]} 43. Kf2 {[%clk 0:00:30]}
43... Nf4 {[%clk 0:00:03.3]} 44. Nxe5+ {[%clk 0:00:19.9]} 44... fxe5 {[%clk
0:00:04]} 45. Bxb5 {[%clk 0:00:21.5]} 45... Nxd5 {[%clk 0:00:02.9]} 46. Bc4
{[%clk 0:00:19.9]} 1-0